bitfinex/quotes_ETHUSD_20220201
["timestamp","ask_amount","ask_price","bid_price","bid_amount"]
[1643689770272,2.4062292,2745.4,2744.9,1.3]
[1643689770456,1.08477493,2745.8,2745.3,0.42157258]
[1643689770652,1.08477493,2745.8,2745.4,0.91043]
[1643689770853,0.1821,2746.0,2745.3,0.90529004]
[1643689770854,0.6527651,2745.9,2745.3,0.90529004]
[1643689771056,0.1821,2746.0,2745.3,0.90529004]
[1643689771057,0.6527651,2746.0,2745.3,5.89376217]
[1643689771255,0.6527651,2746.1,2745.4,1.0]
[1643689771461,0.6527651,2746.1,2745.5,3.79198792]
[1643689771656,0.6716651,2746.2,2745.5,1.82052]
[1643689771857,1.00594291,2746.2,2745.8,0.89709109]
[1643689772102,1.00594291,2746.2,2745.9,1.6384321]
[1643689772680,0.35317781,2746.2,2745.9,1.6384321]
[1643689773880,0.35317781,2746.2,2745.9,2.5486721]
[1643689774085,0.35317781,2746.2,2745.9,2.8486721]
[1643689774481,0.35317781,2746.2,2745.9,4.73747807]
[1643689774482,0.0189,2746.2,2745.9,4.73747807]
[1643689774681,0.0189,2746.2,2745.9,2.8486721]
[1643689774881,0.0189,2746.2,2745.9,3.1486721]
[1643689777935,0.33712016,2746.1,2745.9,0.3]
[1643689778339,0.33712016,2746.1,2745.8,0.3]
[1643689778536,0.33712016,2746.1,2745.3,6.62085]
[1643689778734,0.33712016,2746.1,2745.3,5.32085]
[1643689778938,0.37179652,2745.5,2745.0,1.19222304]
[1643689779136,0.8348651,2746.0,2745.1,0.91056]
[1643689779349,0.1821,2746.0,2745.1,0.91056]
[1643689779577,0.8348651,2746.0,2745.1,4.41056]
[1643689779775,0.1821,2746.0,2745.1,4.41056]
[1643689779981,0.1821,2746.0,2745.1,0.91056]
[1643689780183,0.1821,2746.0,2745.1,2.2389894]
[1643689780391,0.1821,2746.0,2745.1,3.2389894]
[1643689780580,0.34740398,2745.6,2745.1,3.2389894]
[1643689787471,0.01289973,2745.9,2745.1,3.2389894]
[1643689788842,0.4200474,2745.6,2745.1,3.2389894]
[1643689789375,1.53484753,2745.5,2745.1,3.2389894]
[1643689789576,1.53484753,2745.5,2745.1,2.2389894]
[1643689790824,1.53484753,2745.5,2745.1,1.9389894]
[1643689791228,1.53484753,2745.5,2745.1,0.3]
[1643689791428,1.53484753,2745.5,2745.0,1.3]
[1643689791627,1.53484753,2745.5,2745.0,0.6]
[1643689791828,1.53484753,2745.5,2745.0,1.6]
[1643689792230,0.44811374,2745.1,2745.0,1.6]
[1643689792435,1.98296127,2745.1,2745.0,0.3]
[1643689792730,1.98296127,2745.1,2744.8,0.3]
[1643689792931,1.53503714,2745.0,2744.7,2.51069]
[1643689794231,0.44811374,2745.1,2744.7,2.51069]
[1643689795080,0.44811374,2745.1,2744.7,0.91069]
[1643689795278,1.53503834,2745.0,2744.7,0.91069]
[1643689795679,1.53381999,2745.0,2744.7,0.91069]
[1643689796078,1.53381999,2745.0,2744.5,0.91076]
[1643689796281,1.71591999,2745.0,2744.5,0.91076]
[1643689796581,0.41122282,2744.6,2744.2,1.4571954]
[1643689798330,0.1821,2745.1,2744.3,0.91082]
[1643689798733,0.1821,2745.2,2744.3,0.91082]
[1643689799130,0.1821,2745.2,2744.5,0.91079]
[1643689799330,2.80778118,2744.6,2744.5,0.91079]
[1643689799535,2.80778118,2744.6,2744.5,1.21079]
[1643689799536,2.45,2744.6,2744.5,1.21079]
[1643689800138,2.45,2744.6,2744.5,1.9394049]
[1643689800732,2.88948072,2744.6,2744.5,1.9394049]
[1643689800935,2.88948072,2744.6,2744.5,1.21079]
[1643689801135,2.45,2744.6,2744.5,1.21079]
[1643689802291,0.1821,2745.2,2744.5,1.21079]
[1643689802501,0.1821,2745.2,2744.7,0.9107]
[1643689802698,0.1821,2745.2,2744.7,1.2107]
[1643689805844,0.1821,2745.2,2744.7,1.5107]
[1643689806638,0.1821,2745.2,2744.2,3.2787199]
[1643689806639,2.9404575,2744.8,2744.2,3.2787199]
[1643689806841,2.9404575,2744.8,2744.1,0.1821]
[1643689807037,2.9404575,2744.8,2744.1,0.3]
[1643689807240,2.9404575,2744.8,2744.0,0.4821]
[1643689807439,2.9404575,2744.8,2744.0,0.1821]
[1643689807640,0.34077611,2744.2,2743.8,1.82182]
[1643689808444,0.34077611,2744.2,2743.8,2.5506226]
[1643689808641,1.3491,2744.7,2743.8,2.5506226]
[1643689808845,1.3491,2744.7,2743.9,0.3]
[1643689809043,1.3491,2744.7,2744.0,0.91097]
[1643689809243,1.3491,2744.7,2744.4,2.9741764]
[1643689809442,1.3491,2744.7,2744.4,4.31056108]
[1643689809678,1.3491,2744.7,2744.4,4.61056108]
[1643689809884,0.3227915,2744.6,2744.4,4.61056108]
[1643689810489,0.3227915,2744.6,2744.4,4.31056108]
[1643689810987,4.21333,2744.5,2744.4,4.31056108]
[1643689811591,6.55829826,2744.5,2744.4,4.19266108]
[1643689811795,6.55829826,2744.5,2743.0,16.00431299]
[1643689811796,1.79212478,2744.4,2743.0,3.03913469]
[1643689811993,2.88155474,2744.3,2743.0,3.03719682]
[1643689812292,2.88155474,2744.3,2742.8,0.1822]
[1643689812293,0.03184904,2743.9,2742.8,0.1822]
[1643689812533,0.1822,2743.8,2742.8,0.1822]
[1643689812688,0.83023345,2743.3,2742.6,0.1822]
[1643689812892,0.84255914,2743.3,2742.6,0.1822]
[1643689813095,0.84194778,2743.3,2742.6,0.1822]
[1643689813338,2.1822,2743.2,2742.5,0.1]
[1643689813536,0.71881439,2743.2,2742.5,0.1]
[1643689813736,2.57554133,2743.1,2742.5,0.1]
[1643689813938,0.1822,2743.0,2742.5,0.1]
[1643689814138,0.19702644,2743.0,2742.5,0.1]
[1643689814538,1.30125172,2742.7,2742.5,0.1]
[1643689814755,2.0,2742.6,2741.6,0.1822]
[1643689814947,6.61296124,2742.5,2740.6,1.47633283]
[1643689815153,0.01257654,2741.7,2740.2,1.8237]
[1643689815346,0.01257654,2741.7,2740.5,7.44]
[1643689815543,0.78838802,2740.7,2740.5,7.44]
[1643689815792,0.4435912,2739.8,2739.6,3.20502106]
[1643689815947,0.4435912,2739.8,2739.3,0.76231]
[1643689816144,0.4435912,2739.8,2739.7,0.04263176]
[1643689816145,1.4208912,2739.8,2739.7,0.04263176]
[1643689816344,1.4208912,2739.8,2738.7,0.13819997]
[1643689816546,1.43459435,2739.8,2738.7,0.13819997]
[1643689816942,0.44824046,2738.8,2738.7,0.63819997]
[1643689817192,0.44824046,2738.8,2738.4,3.74937]
[1643689817193,0.44824046,2738.8,2738.4,3.33687]
[1643689817386,0.44824046,2738.8,2737.6,2.5787523]
[1643689817387,0.44824046,2738.8,2737.5,35.75014688]
[1643689817587,0.01278328,2738.7,2737.5,30.55965417]
[1643689817997,0.37758276,2738.3,2737.8,0.42606734]
[1643689818192,0.2038,2738.9,2737.8,0.27606734]
[1643689818398,0.2038,2738.9,2737.9,2.60103871]
[1643689818596,0.13819997,2739.3,2737.3,0.524]
[1643689818793,0.1968387,2739.2,2737.4,2.23336195]
[1643689818991,0.3356588,2739.3,2737.8,1.0]
[1643689819193,0.3356588,2739.3,2738.0,1.0]
[1643689819194,0.13819997,2739.3,2738.0,1.0]
[1643689819393,0.42199867,2738.9,2738.4,0.40751247]
[1643689819592,0.42199867,2738.9,2738.3,0.90624049]
[1643689819791,0.13819997,2739.3,2738.3,0.90624049]
[1643689819991,0.004,2738.8,2738.3,0.90624049]
[1643689820189,0.004,2738.8,2738.3,1.50624049]
[1643689820829,0.004,2738.8,2738.4,1.26646898]
[1643689821338,0.004,2738.8,2738.4,2.26646898]
[1643689821537,0.13819997,2739.3,2738.4,1.26646898]
[1643689821538,0.04219997,2739.3,2738.4,1.26646898]
[1643689821835,0.04219997,2739.3,2738.4,2.26646898]
[1643689822034,0.39206545,2739.0,2738.4,1.26646898]
[1643689822236,0.39206545,2739.0,2738.4,2.26646898]
[1643689822437,0.39206545,2739.0,2738.4,1.26646898]
[1643689822633,0.39206545,2739.0,2738.4,2.26646898]
[1643689822835,0.1824,2739.7,2738.4,2.26646898]
[1643689823039,0.1824,2739.9,2738.4,2.26646898]
[1643689823239,1.4319,2740.1,2738.6,1.6]
[1643689823439,1.4319,2740.1,2738.8,0.91243]
[1643689823639,1.4319,2740.1,2738.8,1.21243]
[1643689823640,0.1824,2740.1,2738.8,1.21243]
[1643689823837,0.1824,2740.1,2738.8,1.51243]
[1643689824037,0.34220062,2739.5,2739.0,0.34733455]
[1643689824254,0.34220062,2739.5,2739.0,0.64733455]
[1643689824436,0.34220062,2739.5,2739.0,0.3]
[1643689824683,0.34220062,2739.5,2738.9,0.3]
[1643689824882,0.34220062,2739.5,2738.9,1.3]
[1643689825680,0.34220062,2739.5,2738.8,2.37924852]
[1643689825882,0.34220062,2739.5,2738.9,1.0]
[1643689826287,0.1824,2739.4,2738.8,3.37924852]
[1643689826485,0.1824,2739.4,2738.8,2.37924852]
[1643689826687,0.1824,2739.4,2738.9,1.0]
[1643689826887,0.1824,2740.0,2738.8,3.37924852]
[1643689827087,0.1824,2740.0,2738.9,2.16550322]
[1643689827289,0.1824,2740.2,2738.9,1.7298632]
[1643689827487,0.01227781,2740.3,2738.9,1.7298632]
[1643689827686,0.1824,2740.2,2739.0,0.3]
[1643689827887,0.1824,2740.2,2739.0,0.6]
[1643689828085,0.42445788,2740.1,2739.6,0.33947515]
[1643689828334,5.0835,2740.6,2739.3,1.16651209]
[1643689828335,0.1824,2740.4,2739.3,1.16651209]
[1643689828540,0.1824,2740.9,2739.4,2.77486684]
[1643689828940,0.1824,2740.9,2739.5,1.0]
[1643689829136,0.1824,2741.0,2739.6,1.95600612]
[1643689829339,0.33295608,2740.4,2739.7,0.524]
[1643689829578,0.1824,2740.3,2739.7,0.524]
[1643689829747,0.1824,2740.3,2739.7,0.824]
[1643689830136,1.14645608,2740.4,2739.7,0.824]
[1643689830343,0.33295608,2740.4,2739.9,0.38346356]
[1643689830539,0.33295608,2740.4,2739.7,1.0500002]
[1643689831839,0.1824,2740.3,2739.7,1.0500002]
[1643689832881,0.53250063,2740.3,2739.8,0.37843085]
[1643689833081,0.35010063,2740.3,2739.8,0.37843085]
[1643689833484,0.1824,2741.0,2739.8,0.37843085]
[1643689833684,0.19441096,2741.1,2739.8,2.36386029]
[1643689833890,0.1824,2741.1,2739.9,0.13819997]
[1643689834091,0.04219997,2741.3,2740.0,0.524]
[1643689834284,0.04219997,2741.3,2740.1,2.19871244]
[1643689834485,0.43962369,2741.0,2740.1,3.02271244]
[1643689834685,0.43962369,2741.0,2740.1,4.02271244]
[1643689834886,0.43962369,2741.0,2740.1,1.824]
[1643689835287,0.43962369,2741.0,2740.1,0.3]
[1643689835486,0.43962369,2741.0,2740.0,0.3]
[1643689835687,0.3194091,2740.5,2740.1,0.43971173]
[1643689835934,1.1559091,2740.5,2740.1,1.25333542]
[1643689836232,1.1559091,2740.5,2740.1,1.55333542]
[1643689836434,1.1559091,2740.5,2739.9,0.13819997]
[1643689837034,0.39732162,2740.0,2739.5,1.82407]
[1643689837336,0.39732162,2740.0,2739.0,9.26431]
[1643689837337,0.1824,2739.9,2739.3,0.680844]
[1643689837536,1.0167,2739.9,2739.3,0.680844]
[1643689838833,0.39732162,2740.0,2739.3,0.680844]
[1643689839061,0.39732162,2740.0,2738.4,0.91251]
[1643689839062,2.71868231,2739.9,2738.4,0.91251]
[1643689839242,2.71868231,2739.9,2737.6,0.5]
[1643689839243,0.01295018,2738.6,2737.6,0.5]
[1643689839441,0.1826,2738.5,2737.6,0.34615491]
[1643689839695,0.1826,2738.5,2736.3,30.579757]
[1643689839696,0.01217314,2737.7,2736.3,30.579757]
[1643689839894,0.1826,2737.6,2736.3,30.579757]
[1643689840106,0.8073,2737.7,2736.5,1.0]
[1643689840308,0.42555184,2737.7,2736.5,1.0]
[1643689840694,0.42555184,2737.7,2736.4,0.5]
[1643689841093,0.1826,2738.1,2736.7,1.0]
[1643689841094,0.19457179,2738.1,2736.7,1.0]
[1643689841406,2.0,2738.5,2736.7,1.43698]
[1643689841407,0.1826,2738.4,2736.7,1.43698]
[1643689842094,0.1826,2738.4,2737.1,0.39195578]
[1643689842095,0.38269525,2737.6,2737.1,0.39195578]
[1643689842296,0.19646954,2738.4,2737.2,0.70025792]
[1643689842596,2.27479922,2738.5,2737.2,1.00025792]
[1643689842793,2.24783517,2738.5,2737.2,1.30025792]
[1643689843194,0.1826,2738.5,2737.2,1.30025792]
[1643689843432,0.33249209,2737.9,2737.2,1.30025792]
[1643689843634,2.29176666,2738.5,2737.7,0.87806423]
[1643689843834,2.25120321,2738.5,2737.7,1.47806423]
[1643689844038,0.1826,2738.5,2737.7,0.6]
[1643689844236,0.1826,2738.5,2737.7,0.3]
[1643689844545,0.4369907,2737.8,2737.1,0.39195578]
[1643689844744,0.4369907,2737.8,2737.1,0.69195578]
[1643689844943,2.10568603,2737.7,2737.1,0.69195578]
[1643689845141,0.4369907,2737.8,2737.1,1.4059361]
[1643689845368,2.04858056,2737.7,2736.8,0.05005]
[1643689845740,0.1826,2737.6,2736.8,0.05005]
[1643689846741,0.1826,2737.6,2737.2,0.41220924]
[1643689846940,2.04858056,2737.7,2737.2,0.41220924]
[1643689846941,0.1826,2737.7,2737.2,0.41220924]
[1643689847785,0.1826,2737.7,2737.2,0.3]
[1643689847986,0.1826,2737.7,2737.0,1.3939905]
[1643689848986,0.1826,2737.7,2737.3,0.37759026]
[1643689849389,0.1826,2737.8,2737.3,0.37759026]
[1643689849993,0.1826,2738.1,2737.3,0.37759026]
[1643689850190,0.18123,2738.8,2737.9,0.93514717]
[1643689850191,0.1826,2738.6,2737.9,0.93514717]
[1643689850392,4.3,2738.5,2737.3,0.3]
[1643689850591,0.01226547,2738.3,2737.3,0.3]
[1643689850830,0.7066,2738.2,2736.8,0.05005]
[1643689851236,1.9837392,2738.2,2736.8,0.05005]
[1643689851439,1.4597392,2738.2,2737.8,0.3722145]
[1643689851838,1.2771392,2738.2,2737.8,0.3722145]
[1643689852037,1.2771392,2738.2,2737.8,0.6722145]
[1643689852840,0.1826,2738.1,2737.0,1.0]
[1643689853239,1.47178977,2738.1,2736.8,1.35005]
[1643689853639,1.47178977,2738.1,2736.8,0.35005]
[1643689853881,0.32343458,2737.9,2737.5,0.38982374]
[1643689854041,0.1826,2738.0,2737.1,0.69606677]
[1643689854590,1.1888,2738.4,2737.1,0.69606677]
[1643689854591,1.2771392,2737.8,2737.1,0.69606677]
[1643689855095,1.2771392,2737.8,2737.7,0.42474546]
[1643689855289,1.2771392,2738.0,2737.7,0.72474546]
[1643689855491,0.1826,2737.9,2737.1,0.69606677]
[1643689855692,1.2771392,2737.8,2737.1,0.69606677]
[1643689855889,1.2771392,2738.0,2737.1,0.69606677]
[1643689856089,1.4597392,2737.8,2737.1,0.69606677]
[1643689856292,1.2771392,2737.8,2737.1,0.69606677]
[1643689856491,0.1826,2737.7,2737.1,0.69606677]
[1643689856791,1.2771392,2737.8,2737.3,0.72441368]
[1643689857030,1.2771392,2737.7,2737.3,1.02441368]
[1643689857191,1.2771392,2737.8,2737.3,1.02441368]
[1643689857703,1.2771392,2737.8,2737.3,0.6]
[1643689857704,1.4597392,2737.7,2737.3,0.6]
[1643689857901,1.4597392,2737.7,2736.8,0.05005]
[1643689857902,0.789,2737.7,2736.8,0.05005]
[1643689858092,0.1826,2737.6,2736.8,0.05005]
[1643689858337,1.4597392,2737.7,2736.8,0.05005]
[1643689858534,1.2771392,2737.6,2736.8,0.05005]
[1643689858734,1.2771392,2737.7,2737.4,0.91462962]
[1643689858933,1.2771392,2737.7,2737.5,0.44716097]
[1643689859134,1.2771392,2737.6,2737.5,0.44716097]
[1643689859336,4.4541,2738.2,2736.8,1.05005]
[1643689859337,1.2771392,2737.7,2736.8,1.05005]
[1643689859641,1.4597392,2737.6,2736.8,1.65005]
[1643689859840,1.2771392,2737.6,2736.8,0.65005]
[1643689860042,1.2771392,2737.6,2736.8,0.35005]
[1643689860244,1.2771392,2737.6,2737.3,0.36169088]
[1643689860738,1.2771392,2737.6,2737.3,0.66169088]
[1643689862884,1.2771392,2737.6,2737.3,0.61169088]
[1643689863081,1.2771392,2737.6,2737.3,0.25]
[1643689863320,1.2771392,2737.6,2737.1,0.3]
[1643689863483,1.4597392,2737.6,2736.8,0.35005]
[1643689863782,1.4597392,2737.6,2736.8,0.05005]
[1643689864383,0.39085548,2737.3,2736.8,1.14155011]
[1643689864582,0.39085548,2737.3,2736.8,0.05005]
[1643689864784,1.66799468,2737.3,2736.8,0.05005]
[1643689865183,1.2771392,2737.3,2736.8,0.05005]
[1643689866236,1.27364468,2737.3,2736.9,0.38550111]
[1643689866839,1.27364468,2737.3,2735.9,7.44]
[1643689866840,8.7326,2737.2,2735.9,7.44]
[1643689867044,0.01257457,2736.6,2735.6,0.19043172]
[1643689867242,0.01257457,2736.6,2735.5,0.00650294]
[1643689867243,0.1827,2736.5,2735.7,3.45]
[1643689867439,0.89861537,2736.4,2735.7,3.45]
[1643689867639,0.1827,2736.3,2735.5,0.00469473]
[1643689868046,1.27364468,2736.3,2735.9,0.32345055]
[1643689868441,1.27364468,2736.3,2735.3,0.35214528]
[1643689868674,1.27364468,2736.3,2735.4,2.0]
[1643689868839,1.27364468,2736.3,2735.5,1.0]
[1643689869043,1.27364468,2736.3,2735.6,0.31599168]
[1643689869239,1.27364468,2736.3,2735.6,0.61599168]
[1643689869440,1.27364468,2736.3,2735.6,1.61599168]
[1643689869694,1.27364468,2736.3,2735.6,0.61599168]
[1643689870191,1.27364468,2736.3,2735.8,0.91332]
[1643689870384,1.27364468,2736.3,2735.8,1.21332]
[1643689870587,1.27364468,2736.3,2735.9,0.97614125]
[1643689870784,1.27364468,2736.3,2735.9,1.27614125]
[1643689871385,1.27364468,2736.3,2736.0,0.3572]
[1643689871985,1.27364468,2736.3,2736.1,0.40482361]
[1643689872585,1.27364468,2736.3,2736.1,0.70482361]
[1643689872812,1.27364468,2736.3,2736.1,1.00482361]
[1643689874444,1.27364468,2736.3,2736.2,0.3572]
[1643689875246,1.27364468,2736.3,2736.2,3.1072]
[1643689875645,1.27364468,2736.3,2736.2,4.1072]
[1643689876045,0.1827,2737.1,2736.2,1.3572]
[1643689876243,0.1827,2737.2,2736.2,0.3572]
[1643689876642,0.1827,2737.3,2736.2,0.3572]
[1643689876847,0.1827,2737.3,2737.2,0.80271912]
[1643689877101,0.1827,2737.3,2737.2,1.14971327]
[1643689877290,0.1826,2737.6,2737.2,0.34699415]
[1643689877691,0.50454693,2737.6,2737.3,0.3572]
[1643689877892,2.75,2737.4,2736.2,0.9132]
[1643689878128,0.1826,2737.3,2736.2,1.90578011]
[1643689878290,0.1826,2737.4,2736.2,0.90578011]
[1643689878498,0.1826,2737.4,2735.9,1.82642]
[1643689878691,1.01385538,2737.4,2735.5,1.43744]
[1643689878891,0.41212279,2737.1,2736.6,0.41553179]
[1643689879093,0.1826,2737.0,2736.6,0.41553179]
[1643689879292,0.1826,2737.2,2736.6,0.41553179]
[1643689879493,0.1826,2737.3,2736.6,0.41553179]
[1643689879694,0.1826,2737.3,2736.7,0.89169478]
[1643689880196,3.9826,2737.3,2737.2,0.39299683]
[1643689881545,3.9826,2737.3,2736.7,0.89169478]
[1643689881744,2.09358505,2737.2,2736.7,0.89169478]
[1643689881944,0.1826,2737.1,2736.7,0.89169478]
[1643689882146,0.1826,2737.3,2736.7,1.19169478]
[1643689882944,0.1826,2737.3,2736.8,0.40851977]
[1643689883650,2.3947,2737.7,2736.8,0.70851977]
[1643689883651,0.1826,2737.5,2736.8,0.70851977]
[1643689883845,2.3947,2737.7,2736.8,0.70851977]
[1643689883846,0.1826,2737.6,2736.8,0.70851977]
[1643689884446,1.53908483,2737.5,2736.8,0.70851977]
[1643689884710,0.1826,2737.4,2736.8,0.70851977]
[1643689885107,0.1826,2737.6,2736.8,0.70851977]
[1643689885307,1.53908479,2737.5,2737.4,0.41229803]
[1643689885513,4.07405572,2737.5,2736.7,0.89169478]
[1643689885714,1.72168479,2737.4,2736.1,0.00180821]
[1643689885932,4.07241812,2737.3,2736.1,0.00180821]
[1643689886112,0.1827,2737.2,2735.8,1.82654]
[1643689886513,1.3677,2737.4,2735.9,0.31516395]
[1643689886812,1.185,2737.4,2735.9,0.31516395]
[1643689887010,0.1827,2737.3,2735.9,0.31516395]
[1643689887211,0.1827,2737.3,2735.9,0.91516395]
[1643689887408,1.185,2737.4,2735.9,0.91516395]
[1643689887611,1.185,2737.4,2736.8,0.90112305]
[1643689887817,0.1826,2737.7,2736.8,1.20112305]
[1643689888046,1.53908553,2737.6,2736.8,1.50112305]
[1643689888214,0.1826,2737.5,2736.8,1.50112305]
[1643689888653,0.1826,2737.7,2736.9,0.37420787]
[1643689888864,1.53906003,2737.6,2737.0,0.096]
[1643689889055,14.877,2738.2,2737.1,0.524]
[1643689889056,15.0596,2738.2,2737.1,0.524]
[1643689889250,15.0596,2738.2,2737.1,1.824]
[1643689889251,1.53889809,2738.1,2737.1,1.824]
[1643689890058,1.53889809,2738.1,2738.0,0.35060579]
[1643689890257,1.53889809,2738.1,2737.5,0.86100544]
[1643689890258,6.83889809,2738.1,2737.5,0.86100544]
[1643689890456,1.53889809,2738.0,2737.5,0.86100544]
[1643689890653,1.53889809,2738.0,2737.5,1.16100544]
[1643689890854,5.3,2738.1,2737.5,1.16100544]
[1643689891364,0.1826,2738.2,2737.6,1.95679012]
[1643689891553,1.53877105,2738.1,2737.5,1.16100544]
[1643689891754,0.1826,2738.2,2737.5,1.16100544]
[1643689891954,1.53877217,2738.1,2737.6,2.0009972]
[1643689892191,1.2341,2738.3,2737.6,2.0009972]
[1643689892409,1.3329,2738.5,2737.7,0.65501144]
[1643689892589,1.53864997,2738.4,2737.7,0.35501144]
[1643689892788,1.53864997,2738.4,2737.7,0.95501144]
[1643689892988,1.53864997,2738.4,2737.8,2.88874853]
[1643689893191,1.1503,2738.5,2737.8,2.88874853]
[1643689893389,3.8879,2738.7,2738.6,0.35444325]
[1643689893691,1.72099168,2738.7,2738.6,0.35444325]
[1643689893894,1.53859168,2738.7,2738.6,0.35444325]
[1643689894091,6.68859168,2738.7,2738.6,0.35444325]
[1643689894291,1.53859168,2738.7,2738.6,0.35444325]
[1643689894574,6.03849627,2738.7,2738.6,0.35444325]
[1643689894893,8.23356749,2738.7,2737.7,0.3]
[1643689895097,1.53849627,2738.6,2737.2,3.5]
[1643689895296,0.1826,2738.5,2737.3,1.3]
[1643689895493,1.53849627,2738.4,2737.2,3.5]
[1643689895695,0.1826,2738.3,2737.2,3.5]
[1643689895947,0.1826,2738.3,2737.8,0.73284676]
[1643689896142,1.53883076,2738.2,2737.8,0.73284676]
[1643689896446,6.838,2738.6,2737.9,0.35980765]
[1643689896447,0.1826,2738.1,2737.9,0.35980765]
[1643689896745,0.1826,2738.5,2737.9,0.30980765]
[1643689897148,0.44498292,2738.2,2737.0,0.096]
[1643689897374,0.01266557,2738.0,2737.1,0.3]
[1643689897552,0.1826,2737.9,2737.1,0.78333081]
[1643689898148,1.53880141,2737.8,2737.1,0.78333081]
[1643689898352,0.1826,2737.7,2737.2,0.3892929]
[1643689898552,0.1826,2737.9,2737.2,0.3892929]
[1643689898850,2.327447,2738.0,2737.2,0.3892929]
[1643689898851,0.01266557,2738.0,2737.2,0.3892929]
[1643689899055,0.1826,2737.9,2737.2,0.6892929]
[1643689899449,0.1826,2737.9,2737.8,0.41157387]
[1643689899693,1.72153235,2737.9,2737.8,0.41157387]
[1643689899896,0.01266557,2738.0,2737.8,0.41157387]
[1643689900096,3.9826,2737.9,2737.8,0.41157387]
[1643689900396,0.1826,2738.3,2737.1,1.08333081]
[1643689900598,1.53887543,2738.2,2737.1,1.38333081]
[1643689900794,1.53887543,2738.2,2737.6,0.7349272]
[1643689901395,0.1826,2738.5,2738.2,0.40592618]
[1643689901600,0.1826,2738.5,2737.6,1.0349272]
[1643689901601,7.288786,2738.4,2737.6,1.0349272]
[1643689901794,1.721386,2738.3,2737.6,1.0349272]
[1643689901994,1.538786,2738.2,2737.6,1.0349272]
[1643689902595,1.538786,2738.2,2738.0,0.31968267]
[1643689903840,1.538786,2738.2,2737.6,1.0349272]
[1643689904145,1.538786,2738.2,2737.6,0.3]
[1643689904341,1.538786,2738.2,2736.9,0.43819997]
[1643689904542,1.538786,2738.2,2736.9,0.13819997]
[1643689904742,0.1826,2738.1,2736.9,0.13819997]
[1643689904948,1.538786,2738.0,2737.7,0.42221392]
[1643689905376,0.1826,2738.3,2737.7,0.42221392]
[1643689905542,1.53891647,2738.2,2737.7,0.42221392]
[1643689905743,0.1826,2738.1,2737.7,0.42221392]
[1643689905943,1.53891647,2738.0,2737.7,0.42221392]
[1643689906345,1.53891647,2737.9,2737.7,0.42221392]
[1643689906753,0.1826,2738.3,2737.7,0.39221392]
[1643689906944,1.53893818,2738.2,2737.7,0.39221392]
[1643689907209,0.1826,2738.1,2737.7,0.39221392]
[1643689907408,1.53893818,2738.0,2736.9,1.13819997]
[1643689907608,1.53893818,2738.0,2737.5,0.3]
[1643689907807,1.53893818,2737.9,2736.9,0.13819997]
[1643689908008,3.9122,2738.2,2736.9,0.13819997]
[1643689908208,1.72150578,2738.1,2736.9,0.13819997]
[1643689908406,1.53890578,2738.0,2737.2,0.95262127]
[1643689908609,1.53890578,2738.0,2737.4,0.42793976]
[1643689908809,1.53890578,2738.0,2737.4,0.72793976]
[1643689911446,2.06482246,2737.9,2737.4,0.72793976]
[1643689911844,2.64539593,2738.1,2737.4,0.72793976]
[1643689912049,1.53894108,2738.0,2737.4,0.72793976]
[1643689912343,3.63459859,2738.0,2737.4,0.72793976]
[1643689912545,1.53894108,2737.9,2737.4,0.72793976]
[1643689912944,1.53894108,2737.9,2737.4,0.3]
[1643689913144,1.53894108,2737.9,2737.2,1.25262127]
[1643689913347,2.08271604,2737.8,2736.9,0.13819997]
[1643689913647,1.72017108,2737.7,2736.0,0.00180821]
[1643689913848,4.24554108,2737.6,2736.0,0.00180821]
[1643689914049,1.55532047,2737.5,2736.4,0.34306612]
[1643689914247,1.72154108,2737.4,2736.4,0.34306612]
[1643689914450,1.53894108,2737.3,2736.4,1.2913521]
[1643689914695,0.19384307,2737.2,2736.4,1.2913521]
[1643689914894,0.1826,2737.2,2736.4,1.2913521]
[1643689915299,0.38497398,2737.0,2736.4,1.2913521]
[1643689915493,0.38497398,2737.0,2736.4,0.34306612]
[1643689915924,0.38497398,2737.0,2736.4,0.64306612]
[1643689916695,0.38497398,2737.0,2736.4,0.58233977]
[1643689917000,0.38497398,2737.0,2736.3,0.84427577]
[1643689917203,0.38497398,2737.0,2735.7,1.21351]
[1643689917399,2.17267267,2736.9,2735.7,1.21351]
[1643689917898,0.38497398,2737.0,2736.4,0.31616]
[1643689918099,0.38497398,2737.0,2736.0,0.91341]
[1643689918336,2.07107438,2736.9,2736.0,2.37013116]
[1643689919043,0.38497398,2737.0,2736.0,2.37013116]
[1643689919340,0.38497398,2737.0,2736.4,0.39592691]
[1643689919545,0.38497398,2737.0,2736.4,0.69592691]
[1643689919942,0.33497398,2737.0,2736.4,0.69592691]
[1643689920142,0.33497398,2737.0,2736.4,0.3]
[1643689920342,2.04985638,2736.9,2736.0,2.37013116]
[1643689920544,0.33497398,2737.0,2736.0,2.37013116]
[1643689921241,2.04159869,2736.9,2736.0,2.37013116]
[1643689921440,2.04159869,2736.9,2736.2,0.38533589]
[1643689921641,0.33497398,2737.0,2736.2,0.68533589]
[1643689923699,1.3339,2737.2,2736.7,0.36216445]
[1643689923900,1.1512,2737.2,2736.7,0.36216445]
[1643689924098,1.1512,2737.2,2736.7,0.66216445]
[1643689924298,0.1826,2737.4,2736.8,0.81057126]
[1643689924499,2.23978954,2737.6,2736.7,0.3]
[1643689924701,1.53926609,2737.5,2736.3,1.0]
[1643689924903,0.1826,2737.4,2736.3,1.6]
[1643689925098,0.1826,2737.4,2736.3,0.3]
[1643689925299,2.0,2737.6,2736.4,0.3]
[1643689925300,0.1826,2737.5,2736.4,0.3]
[1643689925499,0.1826,2737.5,2736.7,0.44588039]
[1643689925949,0.1826,2737.5,2736.2,1.82655]
[1643689926149,0.01291838,2737.0,2735.4,0.00180821]
[1643689926343,0.1827,2736.9,2735.4,0.00180821]
[1643689926740,0.1827,2736.9,2735.3,2.97454997]
[1643689926944,0.01291838,2737.0,2735.3,2.97454997]
[1643689927141,0.1827,2736.9,2736.0,0.91345]
[1643689927342,0.1827,2737.2,2736.0,0.91345]
[1643689927547,0.1827,2737.2,2736.0,1.51345]
[1643689927752,2.22052178,2737.2,2736.0,1.21345]
[1643689928141,0.42427413,2737.1,2736.7,0.39069777]
[1643689928342,0.1826,2737.0,2736.7,0.39069777]
[1643689928741,2.23660981,2737.0,2736.0,1.21345]
[1643689928947,2.23660981,2737.0,2735.8,1.7307523]